[Event "Live Chess"]
[Site "Chess.com"]
[Date "2023.05.20"]
[Round "-"]
[White "Sacbutt"]
[Black "WilliamofOrange16th"]
[Result "0-1"]
[WhiteElo "2194"]
[BlackElo "1895"]
[TimeControl "300"]
[EndTime "10:50:01 PDT"]
[Termination "WilliamofOrange16th won on time"]

1. d4 {[%clk 0:04:59.7]} 1... d5 {[%clk 0:04:57.4]} 2. c4 {[%clk 0:04:58.6]}
2... c6 {[%clk 0:04:56.8]} 3. Nc3 {[%clk 0:04:57.5]} 3... Nf6 {[%clk 0:04:55.1]}
4. Nf3 {[%clk 0:04:57]} 4... a6 {[%clk 0:04:54.4]} 5. e3 {[%clk 0:04:56.5]} 5...
Bf5 {[%clk 0:04:52.6]} 6. Be2 {[%clk 0:04:52]} 6... e6 {[%clk 0:04:51.6]} 7. O-O
{[%clk 0:04:50.5]} 7... Bd6 {[%clk 0:04:49.7]} 8. h3 {[%clk 0:04:48.6]} 8... O-O
{[%clk 0:04:47.4]} 9. Nh4 {[%clk 0:04:46.8]} 9... Bg6 {[%clk 0:04:40.3]} 10.
Nxg6 {[%clk 0:04:43.6]} 10... hxg6 {[%clk 0:04:40.2]} 11. b3 {[%clk 0:04:42.3]}
11... Nbd7 {[%clk 0:04:23.7]} 12. Qc2 {[%clk 0:04:36.1]} 12... Rc8 {[%clk
0:04:20]} 13. f4 {[%clk 0:04:31.6]} 13... Nh5 {[%clk 0:04:14.3]} 14. Rf3 {[%clk
0:04:18.4]} 14... f5 {[%clk 0:03:57.5]} 15. Bd2 {[%clk 0:04:13.4]} 15... Qe8
{[%clk 0:03:38.2]} 16. c5 {[%clk 0:04:11.3]} 16... Bb8 {[%clk 0:03:36.1]} 17. b4
{[%clk 0:04:09.4]} 17... Qe7 {[%clk 0:03:32.5]} 18. Be1 {[%clk 0:04:06.1]} 18...
g5 {[%clk 0:03:30.9]} 19. Rf1 {[%clk 0:03:45.1]} 19... g6 {[%clk 0:03:25.4]} 20.
g4 {[%clk 0:03:39.2]} 20... Ng7 {[%clk 0:03:19.6]} 21. fxg5 {[%clk 0:03:01.1]}
21... Qxg5 {[%clk 0:03:15]} 22. Bf2 {[%clk 0:02:58.9]} 22... Nf6 {[%clk
0:02:58.8]} 23. Qd1 {[%clk 0:02:52.2]} 23... fxg4 {[%clk 0:02:57.3]} 24. Bxg4
{[%clk 0:02:50.1]} 24... Nxg4 {[%clk 0:02:56.2]} 25. Qxg4 {[%clk 0:02:49.1]}
25... Qxg4+ {[%clk 0:02:54.7]} 26. hxg4 {[%clk 0:02:49]} 26... Rf7 {[%clk
0:02:49.7]} 27. Bh4 {[%clk 0:02:47.2]} 27... Rcf8 {[%clk 0:02:45.9]} 28. Rxf7
{[%clk 0:02:45.9]} 28... Rxf7 {[%clk 0:02:45.2]} 29. Rf1 {[%clk 0:02:45.1]}
29... Bc7 {[%clk 0:02:40]} 30. e4 {[%clk 0:02:39.8]} 30... e5 {[%clk 0:02:09.8]}
31. exd5 {[%clk 0:02:27.1]} 31... exd4 {[%clk 0:02:08.7]} 32. Ne4 {[%clk
0:02:13.4]} 32... Rxf1+ {[%clk 0:01:54.6]} 33. Kxf1 {[%clk 0:02:11.8]} 33...
cxd5 {[%clk 0:01:53.9]} 34. Nf6+ {[%clk 0:02:08.9]} 34... Kf7 {[%clk 0:01:53.4]}
35. Nxd5 {[%clk 0:02:07.8]} 35... Ne6 {[%clk 0:01:42.6]} 36. Nxc7 {[%clk
0:02:00.8]} 36... Nxc7 {[%clk 0:01:41.4]} 37. Ke2 {[%clk 0:01:55.5]} 37... Ke6
{[%clk 0:01:39.8]} 38. Kd3 {[%clk 0:01:53.3]} 38... Kd5 {[%clk 0:01:39]} 39. Bg3
{[%clk 0:01:40.7]} 39... Ne8 {[%clk 0:01:18.6]} 40. Bh4 {[%clk 0:01:28.8]} 40...
Ng7 {[%clk 0:01:14.6]} 41. a3 {[%clk 0:01:18.9]} 41... Ne6 {[%clk 0:01:11.5]}
42. Bg3 {[%clk 0:01:18.5]} 42... Nd8 {[%clk 0:00:58.1]} 43. Be1 {[%clk
0:01:03.8]} 43... Ne6 {[%clk 0:00:52.6]} 44. Bd2 {[%clk 0:01:00.9]} 44... Nd8
{[%clk 0:00:50.4]} 45. a4 {[%clk 0:01:00.2]} 45... Ne6 {[%clk 0:00:46.6]} 46.
Bc1 {[%clk 0:00:59.6]} 46... Nd8 {[%clk 0:00:45.4]} 47. Bd2 {[%clk 0:00:40.5]}
47... Ne6 {[%clk 0:00:44]} 48. Ke2 {[%clk 0:00:38.1]} 48... Ke4 {[%clk
0:00:42.5]} 49. a5 {[%clk 0:00:25.4]} 49... Nc7 {[%clk 0:00:35.2]} 50. Kf2
{[%clk 0:00:20.4]} 50... Nd5 {[%clk 0:00:31.6]} 51. b5 {[%clk 0:00:15.1]} 51...
axb5 {[%clk 0:00:30]} 52. c6 {[%clk 0:00:12.5]} 52... bxc6 {[%clk 0:00:22]} 53.
Bb4 {[%clk 0:00:09]} 53... Nc7 {[%clk 0:00:20.1]} 54. Kg3 {[%clk 0:00:05.1]}
54... Na6 {[%clk 0:00:18.9]} 0-1

[Event "Live Chess"]
[Site "Chess.com"]
[Date "2023.05.20"]
[Round "-"]
[White "CocheseUK"]
[Black "ViktorTheCoolBoy"]
[Result "0-1"]
[WhiteElo "1141"]
[BlackElo "2542"]
[TimeControl "300"]
[EndTime "10:50:06 PDT"]
[Termination "ViktorTheCoolBoy won by checkmate"]

1. e4 {[%clk 0:04:58.4]} 1... e5 {[%clk 0:04:58.3]} 2. Nf3 {[%clk 0:04:56.2]}
2... Nc6 {[%clk 0:04:56.7]} 3. Bb5 {[%clk 0:04:54.6]} 3... a6 {[%clk 0:04:54.1]}
4. Ba4 {[%clk 0:04:53]} 4... Nf6 {[%clk 0:04:52.4]} 5. Nc3 {[%clk 0:04:46.9]}
5... b5 {[%clk 0:04:44.6]} 6. Bb3 {[%clk 0:04:44.4]} 6... Bc5 {[%clk 0:04:44.1]}
7. O-O {[%clk 0:04:41.6]} 7... O-O {[%clk 0:04:41.2]} 8. d3 {[%clk 0:04:40]}
8... d6 {[%clk 0:04:39.5]} 9. Bg5 {[%clk 0:04:33.1]} 9... h6 {[%clk 0:04:38.3]}
10. Bh4 {[%clk 0:04:31.5]} 10... Be6 {[%clk 0:04:34]} 11. a4 {[%clk 0:04:14.1]}
11... Rb8 {[%clk 0:04:09]} 12. axb5 {[%clk 0:04:08]} 12... axb5 {[%clk
0:04:03.9]} 13. h3 {[%clk 0:03:43.5]} 13... Nd4 {[%clk 0:03:51]} 14. Nxd4 {[%clk
0:03:30.3]} 14... Bxd4 {[%clk 0:03:46.2]} 15. Rb1 {[%clk 0:03:17.9]} 15... Bxb3
{[%clk 0:03:41.4]} 16. cxb3 {[%clk 0:03:13.1]} 16... g5 {[%clk 0:03:38.6]} 17.
Ne2 {[%clk 0:03:03.8]} 17... gxh4 {[%clk 0:03:35.1]} 18. Nxd4 {[%clk 0:03:01.2]}
18... exd4 {[%clk 0:03:35]} 19. Qd2 {[%clk 0:02:39.9]} 19... Kg7 {[%clk
0:03:32.6]} 20. Qf4 {[%clk 0:02:33.1]} 20... Nh5 {[%clk 0:03:25.7]} 21. Qg4+
{[%clk 0:02:30.9]} 21... Qg5 {[%clk 0:03:23.1]} 22. Rbd1 {[%clk 0:02:08.1]}
22... Qxg4 {[%clk 0:03:20.7]} 23. hxg4 {[%clk 0:02:06.8]} 23... Nf4 {[%clk
0:03:20.6]} 24. Kh2 {[%clk 0:01:59.1]} 24... Ra8 {[%clk 0:03:17.1]} 25. g3
{[%clk 0:01:45.9]} 25... hxg3+ {[%clk 0:03:15.5]} 26. Kxg3 {[%clk 0:01:44.8]}
26... Ne6 {[%clk 0:03:14.9]} 27. Rh1 {[%clk 0:01:40.6]} 27... Ra2 {[%clk
0:03:13.6]} 28. Rd2 {[%clk 0:01:36.6]} 28... c5 {[%clk 0:03:09.5]} 29. f4 {[%clk
0:01:33.3]} 29... Rfa8 {[%clk 0:03:04.6]} 30. Kf3 {[%clk 0:01:06.6]} 30... Ra1
{[%clk 0:03:03]} 31. Rdd1 {[%clk 0:01:02.3]} 31... Rxd1 {[%clk 0:03:02]} 32.
Rxd1 {[%clk 0:01:00.9]} 32... Ra2 {[%clk 0:03:01.5]} 33. Rd2 {[%clk 0:00:59.9]}
33... b4 {[%clk 0:03:00.8]} 34. Rh2 {[%clk 0:00:47.3]} 34... Ra1 {[%clk
0:02:57.8]} 35. f5 {[%clk 0:00:30.7]} 35... Ng5+ {[%clk 0:02:55.9]} 36. Kg3
{[%clk 0:00:19.4]} 36... Re1 {[%clk 0:02:54.5]} 37. Rf2 {[%clk 0:00:11]} 37...
Re3+ {[%clk 0:02:52.9]} 38. Kh4 {[%clk 0:00:08.9]} 38... Rh3# {[%clk 0:02:51.7]}
0-1

[Event "Live Chess"]
[Site "Chess.com"]
[Date "2023.05.20"]
[Round "-"]
[White "kevinmilleruk"]
[Black "MarkLim1"]
[Result "0-1"]
[WhiteElo "1113"]
[BlackElo "1630"]
[TimeControl "300"]
[EndTime "10:50:08 PDT"]
[Termination "MarkLim1 won by checkmate"]

1. c4 {[%clk 0:04:56.1]} 1... e6 {[%clk 0:04:57.2]} 2. d4 {[%clk 0:04:55.1]}
2... d5 {[%clk 0:04:56.6]} 3. cxd5 {[%clk 0:04:51.7]} 3... exd5 {[%clk
0:04:55.7]} 4. Nc3 {[%clk 0:04:50.3]} 4... c6 {[%clk 0:04:54.6]} 5. g3 {[%clk
0:04:47.9]} 5... Bf5 {[%clk 0:04:53]} 6. Bg2 {[%clk 0:04:44.5]} 6... Bd6 {[%clk
0:04:52]} 7. Nf3 {[%clk 0:04:42]} 7... Nf6 {[%clk 0:04:50.8]} 8. Bg5 {[%clk
0:04:40.1]} 8... Nbd7 {[%clk 0:04:49.2]} 9. e4 {[%clk 0:04:33.5]} 9... dxe4
{[%clk 0:04:47.8]} 10. Nd2 {[%clk 0:04:26.7]} 10... O-O {[%clk 0:04:42.7]} 11.
Ncxe4 {[%clk 0:04:17.6]} 11... Bxe4 {[%clk 0:04:39.8]} 12. Nxe4 {[%clk
0:04:09.8]} 12... Bb4+ {[%clk 0:04:37]} 13. Nc3 {[%clk 0:04:02.7]} 13... Re8+
{[%clk 0:04:35.6]} 14. Be3 {[%clk 0:03:56]} 14... Nd5 {[%clk 0:04:30.5]} 15. O-O
{[%clk 0:03:54.1]} 15... Nxe3 {[%clk 0:04:29.1]} 16. fxe3 {[%clk 0:03:49.3]}
16... Rxe3 {[%clk 0:04:28.2]} 17. a3 {[%clk 0:03:40.3]} 17... Bd6 {[%clk
0:04:23.6]} 18. Qb3 {[%clk 0:03:31.1]} 18... Qe7 {[%clk 0:04:20.2]} 19. Ne4
{[%clk 0:03:27.5]} 19... Rxb3 {[%clk 0:04:12.9]} 20. Nxd6 {[%clk 0:03:17.3]}
20... Qxd6 {[%clk 0:04:11.1]} 21. Rae1 {[%clk 0:03:14.6]} 21... Rxb2 {[%clk
0:04:09.5]} 22. Rf2 {[%clk 0:03:09.7]} 22... Qxd4 {[%clk 0:04:05.5]} 23. Rf1
{[%clk 0:03:05.4]} 23... Re8 {[%clk 0:04:00.5]} 24. Kh1 {[%clk 0:03:03.9]} 24...
Rxf2 {[%clk 0:03:59.2]} 25. Rxf2 {[%clk 0:03:01.1]} 25... Qxf2 {[%clk
0:03:58.1]} 26. Bxc6 {[%clk 0:03:00.5]} 26... Re1# {[%clk 0:03:56.8]} 0-1

[Event "Live Chess"]
[Site "Chess.com"]
[Date "2023.05.20"]
[Round "-"]
[White "18Ziyad"]
[Black "Prijmak"]
[Result "0-1"]
[WhiteElo "965"]
[BlackElo "1012"]
[TimeControl "300"]
[EndTime "10:50:09 PDT"]
[Termination "Prijmak won by resignation"]

1. e4 {[%clk 0:04:58.7]} 1... e5 {[%clk 0:04:58.4]} 2. Nc3 {[%clk 0:04:56.7]}
2... Nc6 {[%clk 0:04:56.7]} 3. Bc4 {[%clk 0:04:55]} 3... Nf6 {[%clk 0:04:54.6]}
4. d3 {[%clk 0:04:52.4]} 4... Bc5 {[%clk 0:04:52.3]} 5. f4 {[%clk 0:04:50.4]}
5... d6 {[%clk 0:04:47.9]} 6. Nf3 {[%clk 0:04:49]} 6... Bg4 {[%clk 0:04:39.6]}
7. h3 {[%clk 0:04:47.1]} 7... Be6 {[%clk 0:04:32.6]} 8. fxe5 {[%clk 0:04:45.1]}
8... Nxe5 {[%clk 0:04:24.1]} 9. Bg5 {[%clk 0:04:41.5]} 9... h6 {[%clk
0:04:18.4]} 10. Bxf6 {[%clk 0:04:36]} 10... Qxf6 {[%clk 0:04:17.3]} 11. Bxe6
{[%clk 0:04:32.2]} 11... Qxe6 {[%clk 0:04:09.5]} 12. Nxe5 {[%clk 0:04:31.5]}
12... dxe5 {[%clk 0:04:03.7]} 13. Nd5 {[%clk 0:04:27]} 13... Rc8 {[%clk
0:03:54.3]} 14. b4 {[%clk 0:04:16.1]} 14... Bd6 {[%clk 0:03:48.8]} 15. a3 {[%clk
0:04:08.5]} 15... c6 {[%clk 0:03:47]} 16. Nc3 {[%clk 0:04:01]} 16... O-O {[%clk
0:03:45.2]} 17. Qe2 {[%clk 0:03:54]} 17... Qg6 {[%clk 0:03:39.6]} 18. O-O-O
{[%clk 0:03:44.2]} 18... b6 {[%clk 0:03:36.3]} 19. d4 {[%clk 0:03:35.7]} 19...
exd4 {[%clk 0:03:30.8]} 20. Rxd4 {[%clk 0:03:34.6]} 20... Be5 {[%clk 0:03:29.8]}
21. Rd3 {[%clk 0:03:31.2]} 21... Rfd8 {[%clk 0:03:28.2]} 22. Nd1 {[%clk
0:03:16.5]} 22... Rxd3 {[%clk 0:03:21.6]} 23. cxd3 {[%clk 0:03:15.3]} 23... Qf6
{[%clk 0:03:16.3]} 24. Rf1 {[%clk 0:03:12.7]} 24... Qe6 {[%clk 0:03:14.2]} 25.
Ne3 {[%clk 0:03:00.6]} 25... Qb3 {[%clk 0:03:07.5]} 26. Nc2 {[%clk 0:02:50.3]}
26... Qb2+ {[%clk 0:03:03.7]} 27. Kd1 {[%clk 0:02:46.8]} 27... Bc3 {[%clk
0:02:55.2]} 28. Qf3 {[%clk 0:02:12.2]} 28... Rf8 {[%clk 0:02:33.4]} 29. Ke2
{[%clk 0:01:20.8]} 29... Qxc2+ {[%clk 0:02:29.5]} 30. Ke3 {[%clk 0:01:20.2]}
30... Qb2 {[%clk 0:02:16.3]} 31. Rf2 {[%clk 0:01:16.3]} 31... Bd4+ {[%clk
0:02:11.5]} 32. Kf4 {[%clk 0:01:14]} 32... Bxf2 {[%clk 0:02:09.1]} 0-1

[Event "Live Chess"]
[Site "Chess.com"]
[Date "2023.05.20"]
[Round "-"]
[White "jusjoel"]
[Black "alanmike75"]
[Result "0-1"]
[WhiteElo "296"]
[BlackElo "1480"]
[TimeControl "300"]
[EndTime "10:50:15 PDT"]
[Termination "alanmike75 won by resignation"]

1. d4 {[%clk 0:04:51.1]} 1... d5 {[%clk 0:04:58.6]} 2. Nc3 {[%clk 0:04:47.9]}
2... e6 {[%clk 0:04:57.1]} 3. e3 {[%clk 0:04:45.2]} 3... Nf6 {[%clk 0:04:55.8]}
4. Qf3 {[%clk 0:04:31]} 4... Be7 {[%clk 0:04:52.9]} 5. Bd3 {[%clk 0:04:16.4]}
5... O-O {[%clk 0:04:50.6]} 6. e4 {[%clk 0:04:07.3]} 6... dxe4 {[%clk
0:04:46.4]} 7. Nxe4 {[%clk 0:04:02.7]} 7... Qxd4 {[%clk 0:04:42.5]} 8. Nxf6+
{[%clk 0:03:57.7]} 8... Qxf6 {[%clk 0:04:40.7]} 9. Qxf6 {[%clk 0:03:54.5]} 9...
Bxf6 {[%clk 0:04:39.4]} 10. Bf4 {[%clk 0:03:34.7]} 10... e5 {[%clk 0:04:35.6]}
11. Bg3 {[%clk 0:03:28.2]} 11... Be6 {[%clk 0:04:28.3]} 12. O-O-O {[%clk
0:03:24.6]} 12... c5 {[%clk 0:04:23]} 13. Nh3 {[%clk 0:03:17.4]} 13... Nc6
{[%clk 0:04:20.5]} 14. Rhe1 {[%clk 0:03:08.9]} 14... Bxh3 {[%clk 0:04:05.2]} 15.
gxh3 {[%clk 0:03:04.3]} 15... Rfe8 {[%clk 0:04:03.8]} 16. f4 {[%clk 0:02:50.3]}
16... exf4 {[%clk 0:03:58.9]} 17. Bxf4 {[%clk 0:02:46.7]} 17... Nd4 {[%clk
0:03:53.5]} 18. Re2 {[%clk 0:02:03.2]} 18... Nxe2+ {[%clk 0:03:50]} 19. Bxe2
{[%clk 0:01:59.3]} 19... Rxe2 {[%clk 0:03:48.3]} 20. Rd7 {[%clk 0:01:50]} 20...
b6 {[%clk 0:03:43.8]} 21. Bd6 {[%clk 0:01:41]} 21... h6 {[%clk 0:03:34.7]} 22.
Re7 {[%clk 0:01:26.4]} 22... Bg5+ {[%clk 0:03:28.4]} 23. Kd1 {[%clk 0:01:16.4]}
23... Rxe7 {[%clk 0:03:20.5]} 24. Bxe7 {[%clk 0:01:13.7]} 24... Bxe7 {[%clk
0:03:19]} 0-1

[Event "Live Chess"]
[Site "Chess.com"]
[Date "2023.05.20"]
[Round "-"]
[White "LodeshChess"]
[Black "mach247"]
[Result "1/2-1/2"]
[WhiteElo "946"]
[BlackElo "1303"]
[TimeControl "300"]
[EndTime "10:50:17 PDT"]
[Termination "Game drawn by agreement"]

1. e4 {[%clk 0:04:58.4]} 1... d5 {[%clk 0:04:59.4]} 2. exd5 {[%clk 0:04:51.4]}
2... Qxd5 {[%clk 0:04:59.2]} 3. Nc3 {[%clk 0:04:51]} 3... Qd8 {[%clk 0:04:58.1]}
4. d4 {[%clk 0:04:47]} 4... Nf6 {[%clk 0:04:56.9]} 5. Nf3 {[%clk 0:04:46.6]}
5... Bg4 {[%clk 0:04:55.7]} 6. Be2 {[%clk 0:04:44.7]} 6... e6 {[%clk 0:04:53.2]}
7. Be3 {[%clk 0:04:39.3]} 7... c6 {[%clk 0:04:46.2]} 8. O-O {[%clk 0:04:38.6]}
8... Bd6 {[%clk 0:04:43.6]} 9. h3 {[%clk 0:04:35.2]} 9... Bxf3 {[%clk
0:04:42.4]} 10. Bxf3 {[%clk 0:04:34.3]} 10... O-O {[%clk 0:04:41.9]} 11. Ne4
{[%clk 0:04:26.2]} 11... Nxe4 {[%clk 0:04:39.5]} 12. Bxe4 {[%clk 0:04:25.8]}
12... Nd7 {[%clk 0:04:38.2]} 13. Qh5 {[%clk 0:04:20.7]} 13... Nf6 {[%clk
0:04:27.9]} 14. Qh4 {[%clk 0:03:59.9]} 14... Nxe4 {[%clk 0:04:25.5]} 15. Qxe4
{[%clk 0:03:59.1]} 15... Qf6 {[%clk 0:04:06.5]} 16. Qg4 {[%clk 0:03:50.9]} 16...
h6 {[%clk 0:03:49.7]} 17. c3 {[%clk 0:03:37.6]} 17... a5 {[%clk 0:03:44.4]} 18.
a4 {[%clk 0:03:33.4]} 18... Qg6 {[%clk 0:03:27.5]} 19. Qxg6 {[%clk 0:03:15.3]}
19... fxg6 {[%clk 0:03:27.4]} 20. Rae1 {[%clk 0:03:14.4]} 20... e5 {[%clk
0:03:21.5]} 21. dxe5 {[%clk 0:03:06.6]} 21... Bxe5 {[%clk 0:03:21.4]} 22. Bc5
{[%clk 0:03:05.9]} 22... Rf5 {[%clk 0:03:14.8]} 23. Re4 {[%clk 0:02:35.2]} 23...
Bxc3 {[%clk 0:03:12.2]} 24. bxc3 {[%clk 0:02:31.2]} 24... Rxc5 {[%clk
0:03:11.1]} 25. c4 {[%clk 0:02:29]} 25... b5 {[%clk 0:03:01.6]} 26. cxb5 {[%clk
0:02:22.6]} 26... cxb5 {[%clk 0:03:00.9]} 27. Rfe1 {[%clk 0:02:18]} 27... b4
{[%clk 0:02:55.2]} 28. Re5 {[%clk 0:02:06]} 28... Rxe5 {[%clk 0:02:43]} 29. Rxe5
{[%clk 0:02:04.4]} 29... Rb8 {[%clk 0:02:41.4]} 30. Re1 {[%clk 0:01:43]} 30...
b3 {[%clk 0:02:40.7]} 31. Rb1 {[%clk 0:01:42.1]} 31... b2 {[%clk 0:02:40.5]} 32.
Kf1 {[%clk 0:01:41.3]} 32... Rb4 {[%clk 0:02:39.7]} 33. Ke1 {[%clk 0:01:39.2]}
33... Kf7 {[%clk 0:02:39.2]} 34. Kd2 {[%clk 0:01:38]} 34... Kf6 {[%clk
0:02:36.4]} 35. Kc2 {[%clk 0:01:30.2]} 35... Rxa4 {[%clk 0:02:35.7]} 36. Rxb2
{[%clk 0:01:27.9]} 36... Rc4+ {[%clk 0:02:31.7]} 37. Kd3 {[%clk 0:01:24.3]}
37... Rf4 {[%clk 0:02:25.1]} 38. f3 {[%clk 0:01:23.1]} 38... Rf5 {[%clk
0:02:23.7]} 39. Ra2 {[%clk 0:01:21.4]} 39... Kg5 {[%clk 0:02:09.9]} 40. Ra4
{[%clk 0:01:19.1]} 40... Rf4 {[%clk 0:02:04.8]} 41. Rxa5+ {[%clk 0:01:17.6]}
41... Kh4 {[%clk 0:02:00.2]} 42. Ra7 {[%clk 0:01:08.5]} 42... Kg3 {[%clk
0:01:45.8]} 43. Rxg7 {[%clk 0:01:06.8]} 43... Kxg2 {[%clk 0:01:43.8]} 44. Rxg6+
{[%clk 0:01:06.4]} 44... Kxh3 {[%clk 0:01:43.1]} 45. Rxh6+ {[%clk 0:01:05.8]}
45... Kg3 {[%clk 0:01:41.6]} 1/2-1/2

[Event "Live Chess"]
[Site "Chess.com"]
[Date "2023.05.20"]
[Round "-"]
[White "Albul"]
[Black "EdenHazard8"]
[Result "1-0"]
[WhiteElo "2173"]
[BlackElo "2112"]
[TimeControl "300"]
[EndTime "10:50:17 PDT"]
[Termination "Albul won by resignation"]

1. e4 {[%clk 0:04:58.4]} 1... c6 {[%clk 0:04:58.6]} 2. d4 {[%clk 0:04:54.8]}
2... d5 {[%clk 0:04:58.5]} 3. e5 {[%clk 0:04:53.7]} 3... c5 {[%clk 0:04:57.5]}
4. c3 {[%clk 0:04:52.5]} 4... Nc6 {[%clk 0:04:56.8]} 5. Be3 {[%clk 0:04:51.4]}
5... cxd4 {[%clk 0:04:54.9]} 6. cxd4 {[%clk 0:04:50]} 6... Bf5 {[%clk
0:04:54.6]} 7. Bd3 {[%clk 0:04:48.7]} 7... Bxd3 {[%clk 0:04:53]} 8. Qxd3 {[%clk
0:04:47.7]} 8... e6 {[%clk 0:04:52.2]} 9. Nc3 {[%clk 0:04:46.2]} 9... Qb6 {[%clk
0:04:50.9]} 10. Qd2 {[%clk 0:04:44.4]} 10... Nge7 {[%clk 0:04:47.3]} 11. Nge2
{[%clk 0:04:42.2]} 11... Nf5 {[%clk 0:04:46.3]} 12. O-O {[%clk 0:04:41.3]} 12...
Nxe3 {[%clk 0:04:45.5]} 13. fxe3 {[%clk 0:04:40.4]} 13... Be7 {[%clk 0:04:44.4]}
14. Rf2 {[%clk 0:04:32.1]} 14... O-O {[%clk 0:04:42]} 15. Raf1 {[%clk
0:04:31.4]} 15... Na5 {[%clk 0:04:38.1]} 16. b3 {[%clk 0:04:17.5]} 16... Rac8
{[%clk 0:04:34.6]} 17. Qd3 {[%clk 0:04:16.5]} 17... Nc6 {[%clk 0:04:31.1]} 18.
e4 {[%clk 0:04:08.9]} 18... Nb4 {[%clk 0:04:27.1]} 19. Qe3 {[%clk 0:04:03.9]}
19... Nc2 {[%clk 0:04:24.4]} 20. Qd2 {[%clk 0:04:00.3]} 20... Nb4 {[%clk
0:04:01.3]} 21. a3 {[%clk 0:03:50.3]} 21... Na6 {[%clk 0:03:56.7]} 22. exd5
{[%clk 0:03:47.2]} 22... Bxa3 {[%clk 0:03:54.8]} 23. d6 {[%clk 0:03:38.7]} 23...
Qxb3 {[%clk 0:03:50.7]} 24. Ne4 {[%clk 0:03:30.4]} 24... Bb4 {[%clk 0:03:46.8]}
25. Qg5 {[%clk 0:03:28.9]} 25... h6 {[%clk 0:03:38.6]} 26. Nf6+ {[%clk 0:03:14]}
26... Kh8 {[%clk 0:03:34.6]} 27. Qh5 {[%clk 0:03:11.6]} 27... Qe3 {[%clk
0:03:30.3]} 28. Nd7 {[%clk 0:02:57.5]} 28... g6 {[%clk 0:02:58.1]} 29. Qh4
{[%clk 0:02:45.8]} 29... Rfd8 {[%clk 0:02:55.6]} 30. Qf6+ {[%clk 0:02:40.8]}
30... Kh7 {[%clk 0:02:51.4]} 31. Qxf7+ {[%clk 0:02:37.3]} 31... Kh8 {[%clk
0:02:50.8]} 32. Nf6 {[%clk 0:02:32.3]} 1-0

[Event "Live Chess"]
[Site "Chess.com"]
[Date "2023.05.20"]
[Round "-"]
[White "hturner40"]
[Black "WelshTiger"]
[Result "0-1"]
[WhiteElo "1820"]
[BlackElo "2429"]
[TimeControl "300"]
[EndTime "10:50:22 PDT"]
[Termination "WelshTiger won on time"]

1. Nf3 {[%clk 0:04:56.2]} 1... d5 {[%clk 0:04:58.6]} 2. g3 {[%clk 0:04:54.2]}
2... g6 {[%clk 0:04:56.2]} 3. Bg2 {[%clk 0:04:51.9]} 3... Bg7 {[%clk 0:04:55.8]}
4. O-O {[%clk 0:04:50.5]} 4... Nf6 {[%clk 0:04:55.5]} 5. d4 {[%clk 0:04:48]}
5... O-O {[%clk 0:04:54]} 6. c4 {[%clk 0:04:46.8]} 6... dxc4 {[%clk 0:04:51.4]}
7. Na3 {[%clk 0:04:45.2]} 7... c3 {[%clk 0:04:48.8]} 8. bxc3 {[%clk 0:04:41.9]}
8... Nbd7 {[%clk 0:04:42.6]} 9. Nc4 {[%clk 0:04:36.9]} 9... c6 {[%clk
0:04:39.1]} 10. Bf4 {[%clk 0:04:31.6]} 10... Nb6 {[%clk 0:04:38.3]} 11. Nce5
{[%clk 0:04:20.8]} 11... Be6 {[%clk 0:04:35.2]} 12. Ng5 {[%clk 0:04:16.5]} 12...
Bd5 {[%clk 0:04:32.3]} 13. e4 {[%clk 0:04:11.4]} 13... h6 {[%clk 0:04:30.3]} 14.
exd5 {[%clk 0:04:00]} 14... hxg5 {[%clk 0:04:29.5]} 15. Bxg5 {[%clk 0:03:56]}
15... cxd5 {[%clk 0:04:22.9]} 16. Re1 {[%clk 0:03:30.8]} 16... Rc8 {[%clk
0:04:18.9]} 17. Qd3 {[%clk 0:03:11.4]} 17... Qc7 {[%clk 0:04:13.4]} 18. Rac1
{[%clk 0:03:03.3]} 18... Nc4 {[%clk 0:04:08.5]} 19. Bf4 {[%clk 0:02:52]} 19...
Qa5 {[%clk 0:03:46.6]} 20. Nxc4 {[%clk 0:02:23.6]} 20... Rxc4 {[%clk 0:03:44.8]}
21. Rxe7 {[%clk 0:02:18.6]} 21... Rfc8 {[%clk 0:03:37.6]} 22. Bd2 {[%clk
0:01:36.8]} 22... b6 {[%clk 0:03:26.4]} 23. Rce1 {[%clk 0:01:12.4]} 23... Qxa2
{[%clk 0:03:23.4]} 24. Bg5 {[%clk 0:01:06.7]} 24... Rxc3 {[%clk 0:03:19]} 25.
Qd1 {[%clk 0:01:05.2]} 25... Rc2 {[%clk 0:02:45.3]} 26. R7e2 {[%clk 0:00:35.9]}
26... Rxe2 {[%clk 0:02:38.4]} 27. Rxe2 {[%clk 0:00:28.8]} 27... Qc4 {[%clk
0:02:36.3]} 28. Rd2 {[%clk 0:00:15]} 28... b5 {[%clk 0:02:29.2]} 0-1

[Event "Live Chess"]
[Site "Chess.com"]
[Date "2023.05.20"]
[Round "-"]
[White "raminguy"]
[Black "TDCMF"]
[Result "1-0"]
[WhiteElo "1973"]
[BlackElo "350"]
[TimeControl "300"]
[EndTime "10:50:23 PDT"]
[Termination "raminguy won by checkmate"]

1. d4 {[%clk 0:04:59.5]} 1... d5 {[%clk 0:04:55.5]} 2. Nc3 {[%clk 0:04:58.8]}
2... Nf6 {[%clk 0:04:52.6]} 3. Bf4 {[%clk 0:04:57.5]} 3... Bf5 {[%clk
0:04:51.2]} 4. e3 {[%clk 0:04:56.4]} 4... a5 {[%clk 0:04:36.5]} 5. Nf3 {[%clk
0:04:54]} 5... b5 {[%clk 0:04:35]} 6. Bxb5+ {[%clk 0:04:52.2]} 6... c6 {[%clk
0:04:31.9]} 7. Be2 {[%clk 0:04:48.3]} 7... e6 {[%clk 0:04:20.9]} 8. Ne5 {[%clk
0:04:46.8]} 8... g5 {[%clk 0:04:01.4]} 9. Bxg5 {[%clk 0:04:41.9]} 9... Qd6
{[%clk 0:03:54.8]} 10. Bf4 {[%clk 0:04:39.4]} 10... Nh5 {[%clk 0:03:52.5]} 11.
Bxh5 {[%clk 0:04:36.9]} 11... Qb4 {[%clk 0:03:45.9]} 12. Bxf7+ {[%clk 0:04:29]}
12... Ke7 {[%clk 0:03:42.7]} 13. Bg5+ {[%clk 0:04:23]} 13... Kd6 {[%clk
0:03:35.8]} 14. Rb1 {[%clk 0:04:05.4]} 14... c5 {[%clk 0:03:20.9]} 15. O-O
{[%clk 0:03:57.5]} 15... Nd7 {[%clk 0:03:04.6]} 16. Bf4 {[%clk 0:03:53.8]} 16...
cxd4 {[%clk 0:02:59]} 17. Nd3+ {[%clk 0:03:51.5]} 17... e5 {[%clk 0:02:49]} 18.
Nxb4 {[%clk 0:03:49.9]} 18... exf4 {[%clk 0:02:47]} 19. Ncxd5 {[%clk 0:03:48.6]}
19... fxe3 {[%clk 0:02:42.7]} 20. fxe3 {[%clk 0:03:46.9]} 20... Rc8 {[%clk
0:02:41.3]} 21. Rxf5 {[%clk 0:03:44.1]} 21... Ne5 {[%clk 0:02:13.9]} 22. Qxd4
{[%clk 0:03:39.7]} 22... Nxf7 {[%clk 0:02:12.6]} 23. Rxf7 {[%clk 0:03:37.7]}
23... Rc5 {[%clk 0:02:04.9]} 24. Nf6+ {[%clk 0:03:27.5]} 24... Ke6 {[%clk
0:01:56.8]} 25. Qd7+ {[%clk 0:03:20.1]} 25... Ke5 {[%clk 0:01:49.8]} 26. Nd3#
{[%clk 0:03:18.1]} 1-0